fUST/lending_fUST_20250108
["ID","MTS","AMOUNT","RATE_DAILY","PERIOD"]
[348126399,1736343038709,-351.11339861,0.00019178,2]
[348126400,1736343038718,-500.0,0.00019178,2]
[348126401,1736343038727,-500.0,0.00019178,2]
[348126402,1736343038738,-394.7387691,0.00019178,2]
[348126407,1736343038844,-500.40839618,0.00019178,2]
[348126408,1736343038855,-500.0,0.00019178,2]
[348126409,1736343038865,-500.0,0.00019178,2]
[348126410,1736343038874,-500.0,0.00019178,2]
[348126411,1736343038883,-500.0,0.00019178,2]
[348126412,1736343038893,-508.27356375,0.00019178,2]
[348126413,1736343038902,-500.0,0.00019178,2]
[348126414,1736343038913,-500.0,0.00019178,2]
[348126415,1736343038922,-20703.94,0.00019178,2]
[348126416,1736343038932,-509.34896983,0.00019178,2]
[348126417,1736343038941,-587.53,0.00019178,2]
[348126418,1736343038950,-505.38692903,0.00019178,2]
[348126419,1736343038959,-733.06,0.00019178,2]
[348126420,1736343038969,-869.37,0.00019178,2]
[348126421,1736343038979,-500.0,0.00019178,2]
[348126422,1736343038988,-835.35,0.00019178,2]
[348126423,1736343038997,-737.28,0.00019178,2]
[348126424,1736343039007,-2389.98,0.00019178,2]
[348126425,1736343039017,-500.0,0.00019178,2]
[348126426,1736343039026,-500.0,0.00019178,2]
[348126427,1736343039036,-451.2487868,0.00019178,2]
[348126428,1736343039045,-500.0,0.00019178,2]
[348126429,1736343039055,-500.0,0.00019178,2]
[348126430,1736343039065,-800.95,0.00019178,2]
[348126431,1736343039074,-515.76,0.00019178,2]
[348126432,1736343039084,-500.0,0.00019178,2]
[348126433,1736343039094,-585.65,0.00019178,2]
[348126434,1736343039104,-750.19,0.00019178,2]
[348126435,1736343039115,-1402.44,0.00019178,2]
[348126436,1736343039123,-379.75536237,0.00019178,2]
[348126437,1736343039133,-500.0,0.00019178,2]
[348126438,1736343039143,-2756.32750046,0.00019178,2]
[348126439,1736343039164,-382.815002,0.00019178,2]
[348126470,1736343040634,-1150.15,0.00018986,2]
[348126472,1736343040645,-412.8466446,0.00018986,2]
[348126474,1736343040654,-90.2033554,0.00019178,2]
[348126478,1736343040696,-293.47199999,0.00019178,2]
[348126480,1736343040707,-1963.28214215,0.00019178,2]
[348126482,1736343040716,-809.56,0.00019178,2]
[348126484,1736343040725,-747.34,0.00019178,2]
[348126486,1736343040734,-500.0,0.00019178,2]
[348126488,1736343040748,-574.11,0.00019178,2]
[348126489,1736343040757,-500.0,0.00019178,2]
[348126491,1736343040767,-750.43,0.00019178,2]
[348126493,1736343040776,-705.85,0.00019178,2]
[348126495,1736343040785,-601.36813788,0.00019178,2]
[348126497,1736343040794,-500.0,0.00019178,2]
[348126498,1736343040803,-382.71621334,0.00019178,2]
[348126771,1736343043652,-124.63447015,0.00019178,2]
[348126773,1736343043664,-375.36552985,0.00019178,2]
[348126779,1736343043711,-124.63447015,0.00019178,2]
[348126781,1736343043720,-500.0,0.00019178,2]
[348126783,1736343043730,-500.0,0.00019178,2]
[348126785,1736343043743,-500.0,0.00019178,2]
[348126787,1736343043753,-500.0,0.00019178,2]
[348126789,1736343043762,-490.85295336,0.00019178,2]
[348126791,1736343043776,-9.14704664,0.00019178,2]
[348126794,1736343043786,-500.0,0.00019178,2]
[348126797,1736343043808,-500.0,0.00019178,2]
[348126799,1736343043819,-500.0,0.00019178,2]
[348126801,1736343043829,-500.0,0.00019178,2]
[348126803,1736343043839,-500.0,0.00019178,2]
[348126805,1736343043849,-1407.49,0.00019178,2]
[348126808,1736343043870,-566.77,0.00019178,2]
[348126811,1736343043887,-500.0,0.00019178,2]
[348126813,1736343043902,-500.0,0.00019178,2]
[348126816,1736343043917,-500.0,0.00019178,2]
[348126818,1736343043929,-500.0,0.00019178,2]
[348126820,1736343043941,-155.63,0.00019178,2]
[348126823,1736343043956,-500.0,0.00019452,3]
[348126825,1736343043970,-500.0,0.00019452,3]
[348126828,1736343043984,-6123.39,0.00019452,3]
[348126830,1736343043997,-328.81316709,0.00019452,3]
[348126832,1736343044010,-1035.82,0.00019452,3]
[348126835,1736343044024,-500.0,0.00019452,3]
[348126837,1736343044039,-1844.03,0.00019452,3]
[348126840,1736343044053,-500.0,0.00019452,3]
[348126842,1736343044065,-500.0,0.00019452,3]
[348126844,1736343044077,-211.3547779,0.00019452,3]
[348126847,1736343044091,-500.0,0.00019452,3]
[348126849,1736343044104,-500.0,0.00019452,3]
[348126852,1736343044117,-500.0,0.00019452,3]
[348126854,1736343044131,-500.0,0.00019452,3]
[348126856,1736343044144,-500.0,0.00019452,3]
[348126859,1736343044156,-500.0,0.00019452,3]
[348126861,1736343044169,-500.0,0.00019452,3]
[348126863,1736343044179,-500.0,0.00019452,3]
[348126865,1736343044192,-500.0,0.00019452,3]
[348126868,1736343044206,-500.0,0.00019452,3]
[348126870,1736343044218,-500.0,0.00019452,3]
[348126872,1736343044231,-500.0,0.00019452,3]
[348126874,1736343044243,-500.0,0.00019452,3]
[348126877,1736343044255,-500.0,0.00019452,3]
[348126879,1736343044268,-500.0,0.00019452,3]
[348126881,1736343044281,-500.0,0.00019452,3]
[348126882,1736343044297,-500.0,0.00019452,3]
[348126883,1736343044309,-500.0,0.00019452,3]
[348126884,1736343044321,-500.0,0.00019452,3]
[348126885,1736343044332,-500.0,0.00019452,3]
[348126886,1736343044343,-500.0,0.00019452,3]
[348126887,1736343044355,-20703.94,0.00019452,3]
[348126888,1736343044368,-587.53,0.00019452,3]
[348126889,1736343044382,-733.06,0.00019452,3]
[348126890,1736343044395,-869.37,0.00019452,3]
[348126891,1736343044404,-500.0,0.00019452,3]
[348126892,1736343044418,-835.35,0.00019452,3]
[348126894,1736343044430,-737.28,0.00019452,3]
[348126896,1736343044443,-2389.98,0.00019452,3]
[348126898,1736343044454,-500.0,0.00019452,3]
[348126900,1736343044465,-500.0,0.00019452,3]
[348126902,1736343044476,-300.76271022,0.00019452,3]
[348126904,1736343044486,-500.0,0.00019452,3]
[348126906,1736343044497,-800.95,0.00019452,3]
[348126909,1736343044509,-515.76,0.00019452,3]
[348126911,1736343044523,-500.0,0.00019452,3]
[348126913,1736343044535,-585.65,0.00019452,3]
[348126916,1736343044546,-750.19,0.00019452,3]
[348126918,1736343044557,-1402.44,0.00019452,3]
[348126920,1736343044570,-500.0,0.00019452,3]
[348126922,1736343044582,-5486.1,0.00019452,3]
[348126925,1736343044594,-809.56,0.00019452,3]
[348126927,1736343044605,-747.34,0.00019452,3]
[348126929,1736343044617,-500.0,0.00019452,3]
[348126931,1736343044628,-574.11,0.00019452,3]
[348126933,1736343044639,-500.0,0.00019452,3]
[348126935,1736343044650,-750.43,0.00019452,3]
[348126938,1736343044661,-705.85,0.00019452,3]
[348126940,1736343044673,-500.0,0.00019452,3]
[348126942,1736343044684,-500.0,0.00019452,3]
[348126944,1736343044696,-500.0,0.00019452,3]
[348126946,1736343044707,-500.0,0.00019452,3]
[348126949,1736343044719,-500.0,0.00019452,3]
[348126951,1736343044730,-500.0,0.00019452,3]
[348126953,1736343044743,-500.0,0.00019452,3]
[348126955,1736343044757,-500.0,0.00019452,3]
[348126957,1736343044768,-500.0,0.00019452,3]
[348126960,1736343044780,-1407.49,0.00019452,3]
[348126962,1736343044792,-566.77,0.00019452,3]
[348126964,1736343044802,-500.0,0.00019452,3]
[348126966,1736343044815,-332.86944555,0.00019452,3]
[348126968,1736343044826,-500.0,0.00019452,3]
[348126971,1736343044838,-9703.21073867,0.00019512,2]
[348126973,1736343044849,-1000.0,0.00019721,2]
[348126975,1736343044861,-331.31332151,0.00019725,2]
[348126977,1736343044872,-500.0,0.00019726,3]
[348126979,1736343044883,-500.0,0.00019726,3]
[348126981,1736343044895,-6123.39,0.00019726,3]
[348126984,1736343044906,-1035.82,0.00019726,3]
[348126986,1736343044918,-1844.03,0.00019726,3]
[348126988,1736343044929,-500.0,0.00019726,3]
[348126990,1736343044939,-500.0,0.00019726,3]
[348126992,1736343044949,-500.0,0.00019726,3]
[348126994,1736343044960,-500.0,0.00019726,3]
[348127010,1736343045098,-500.0,0.00019726,3]
[348127013,1736343045115,-500.0,0.00019726,3]
[348127014,1736343045124,-500.0,0.00019726,3]
[348127016,1736343045134,-500.0,0.00019726,3]
[348127019,1736343045145,-500.0,0.00019726,3]
[348127021,1736343045155,-500.0,0.00019726,3]
[348127022,1736343045167,-500.0,0.00019726,3]
[348127024,1736343045176,-500.0,0.00019726,3]
[348127027,1736343045186,-500.0,0.00019726,3]
[348127028,1736343045196,-500.0,0.00019726,3]
[348127030,1736343045205,-500.0,0.00019726,3]
[348127032,1736343045216,-500.0,0.00019726,3]
[348127034,1736343045225,-500.0,0.00019726,3]
[348127036,1736343045235,-500.0,0.00019726,3]
[348127038,1736343045244,-500.0,0.00019726,3]
[348127041,1736343045254,-500.0,0.00019726,3]
[348127043,1736343045264,-500.0,0.00019726,3]
[348127045,1736343045273,-20703.94,0.00019726,3]
[348127047,1736343045283,-587.53,0.00019726,3]
[348127049,1736343045292,-733.06,0.00019726,3]
[348127051,1736343045302,-869.37,0.00019726,3]
[348127053,1736343045311,-500.0,0.00019726,3]
[348127055,1736343045321,-835.35,0.00019726,3]
[348127057,1736343045330,-737.28,0.00019726,3]
[348127059,1736343045340,-2389.98,0.00019726,3]
[348127061,1736343045349,-500.0,0.00019726,3]
[348127063,1736343045359,-500.0,0.00019726,3]
[348127065,1736343045368,-500.0,0.00019726,3]
[348127067,1736343045377,-800.95,0.00019726,3]
[348127069,1736343045386,-515.76,0.00019726,3]
[348127071,1736343045395,-500.0,0.00019726,3]
[348127072,1736343045404,-585.65,0.00019726,3]
[348127074,1736343045418,-750.19,0.00019726,3]
[348127077,1736343045428,-1402.44,0.00019726,3]
[348127079,1736343045437,-500.0,0.00019726,3]
[348127081,1736343045446,-5486.1,0.00019726,3]
[348127082,1736343045456,-809.56,0.00019726,3]
[348127085,1736343045465,-747.34,0.00019726,3]
[348127086,1736343045475,-500.0,0.00019726,3]
[348127088,1736343045484,-574.11,0.00019726,3]
[348127091,1736343045494,-500.0,0.00019726,3]
[348127092,1736343045504,-705.85,0.00019726,3]
[348127094,1736343045513,-750.43,0.00019726,3]
[348127097,1736343045523,-500.0,0.00019726,3]
[348127098,1736343045534,-500.0,0.00019726,3]
[348127100,1736343045544,-378.99554935,0.00019726,3]
[348127102,1736343045554,-500.0,0.00019726,3]
[348127104,1736343045562,-500.0,0.00019726,3]
[348127106,1736343045572,-500.0,0.00019726,3]
[348127108,1736343045581,-500.0,0.00019726,3]
[348127110,1736343045590,-500.0,0.00019726,3]
[348127112,1736343045599,-500.0,0.00019726,3]
[348127114,1736343045608,-1407.49,0.00019726,3]
[348127116,1736343045617,-566.77,0.00019726,3]
[348127118,1736343045627,-500.0,0.00019726,3]
[348127120,1736343045636,-500.0,0.00019726,3]
[348127122,1736343045645,-9703.21073867,0.00019827,2]
[348127124,1736343045655,-517.06402965,0.00019863,7]
[348127126,1736343045667,-151.0,0.000199,2]
[348127128,1736343045676,-3754.16125314,0.000199,2]
[348127130,1736343045686,-250200.15149382,0.0001999,7]
[348127243,1736343046759,-152.0,0.00019922,2]
[348127245,1736343046770,-4630.5,0.0001999,7]
[348127520,1736343362003,2115.9699,0.00025,120]
[348127521,1736343495819,167.051486,0.00013973,2]
[348127530,1736343958149,-193.78425,0.00017121,2]
[348127531,1736343958171,-233.74276836,0.00018083,2]
[348127612,1736344047112,-150.0,0.00017902,2]
[348127613,1736344047137,-281.67946159,0.00018083,2]
[348127614,1736344048158,-18.32053841,0.00018083,2]
[348127615,1736344048181,-3735.58575466,0.00018083,2]
[348127624,1736344140801,1035.0,0.00025,120]
[348127625,1736344145096,-1637.72252939,0.00017901,2]
[348127626,1736344145119,-300.0,0.00018081,2]
[348127627,1736344145142,-255.23477475,0.00018084,2]
[348127628,1736344148103,-13051.0,0.00018083,2]
[348127629,1736344148126,-10964.10726949,0.00018084,2]
[348127630,1736344153190,-13680.65795576,0.00018084,2]
[348127631,1736344153216,-250.0,0.00018222,2]
[348127632,1736344153240,-9.98637669,0.000188,2]
[348127633,1736344161109,-394.2070691,0.000188,2]
[348127634,1736344174132,-12.23715135,0.000188,2]
[348127635,1736344174162,-773.005,0.00019,2]
[348127636,1736344174184,-600.0,0.00019,2]
[348127637,1736344174210,-574.75784865,0.000191,2]
[348127676,1736344231889,-186.60199425,0.000191,2]
[348127679,1736344231899,-155.66,0.00019177,2]
[348127680,1736344231908,-157.73800575,0.00019177,2]
[348127683,1736344231920,-7.85099425,0.00019177,2]
[348127685,1736344231930,-300.0,0.00019177,2]
[348127687,1736344231939,-234.21785424,0.00019177,2]
[348127689,1736344231948,-350.45373706,0.00019177,2]
[348127691,1736344231958,-500.0,0.00019177,2]
[348127693,1736344231967,-486.81977859,0.00019177,2]
[348127695,1736344231976,-500.0,0.00019178,2]
[348127697,1736344231986,-631.58724469,0.00019178,2]
[348127699,1736344231995,-500.0,0.00019178,2]
[348127701,1736344232005,-500.77009266,0.00019178,2]
[348127703,1736344232014,-508.93058891,0.00019178,2]
[348127705,1736344232023,-526.51,0.00019178,2]
[348127707,1736344232032,-500.0,0.00019178,2]
[348127709,1736344232041,-209.95768956,0.00019178,2]
[348127711,1736344232051,-5682.22,0.00019178,2]
[348127713,1736344232060,-500.0,0.00019178,2]
[348127715,1736344232069,-420.26039573,0.00019178,2]
[348127717,1736344232086,-79.73960427,0.00019178,2]
[348127720,1736344232096,-500.0,0.00019178,2]
[348127722,1736344232105,-1114.68,0.00019178,2]
[348127724,1736344232115,-500.0,0.00019178,2]
[348127726,1736344232124,-500.0,0.00019178,2]
[348127728,1736344232134,-500.0,0.00019178,2]
[348127730,1736344232144,-500.0,0.00019178,2]
[348127732,1736344232153,-500.0,0.00019178,2]
[348127733,1736344232162,-500.0,0.00019178,2]
[348127735,1736344232172,-500.0,0.00019178,2]
[348127737,1736344232185,-500.0,0.00019178,2]
[348127740,1736344232195,-500.0,0.00019178,2]
[348127742,1736344232204,-500.0,0.00019178,2]
[348127744,1736344232215,-475.34046984,0.00019178,2]
[348127746,1736344232225,-500.0,0.00019178,2]
[348127748,1736344232234,-500.0,0.00019178,2]
[348127750,1736344232243,-500.0,0.00019178,2]
[348127752,1736344232254,-500.0,0.00019178,2]
[348127754,1736344232264,-500.0,0.00019178,2]
[348127756,1736344232273,-500.0,0.00019178,2]
[348127758,1736344232282,-500.0,0.00019178,2]
[348127760,1736344232292,-500.0,0.00019178,2]
[348127762,1736344232301,-1439.89,0.00019178,2]
[348127764,1736344232310,-500.0,0.00019178,2]
[348127766,1736344232320,-500.0,0.00019178,2]
[348127768,1736344232329,-500.0,0.00019178,2]
[348127770,1736344232340,-500.0,0.00019178,2]
[348127772,1736344232350,-500.0,0.00019178,2]
[348127774,1736344232359,-727.27,0.00019178,2]
[348127775,1736344232368,-500.0,0.00019178,2]
[348127777,1736344232378,-10346.1834471,0.00019178,2]
[348128115,1736344237774,-368.52612862,0.00019178,2]
[348128116,1736344237853,-131.47387138,0.00019178,2]
[348128117,1736344237863,-969.04,0.00019178,2]
[348128118,1736344237873,-500.0,0.00019178,2]
[348128119,1736344237883,-925.75,0.00019178,2]
[348128120,1736344237892,-252.20339522,0.00019178,2]
[348128156,1736344239976,-261.88660478,0.00019178,2]
[348128158,1736344239993,-159.86498596,0.00019178,2]
[348128185,1736344242804,-340.13501404,0.00019178,2]
[348128186,1736344242814,-500.0,0.00019178,2]
[348128187,1736344242823,-500.0,0.00019178,2]
[348128188,1736344242833,-772.43,0.00019178,2]
[348128189,1736344242843,-500.0,0.00019178,2]
[348128190,1736344242854,-364.83498596,0.00019178,2]
[348128207,1736344784708,402.4941531,0.00025,120]
[348128212,1736344911191,167.051486,0.00013973,2]
[348128217,1736345226142,-411.39062931,0.00017699,2]
[348128218,1736345241148,-340.13653074,0.00017699,2]
[348128219,1736345353419,-239.88174,0.00017877,2]
[348128220,1736345353442,-300.0,0.00018135,2]
[348128221,1736345353464,-11924.0,0.00018136,2]
[348128222,1736345353488,-24261.72355495,0.00018137,2]
[348128223,1736345354142,-638.27644505,0.00018137,2]
[348128224,1736345354171,-186.9956367,0.00018153,2]
[348128225,1736345354194,-740.721,0.00019,2]
[348128226,1736345354216,-302.90913937,0.00019,2]
[348128227,1736345354239,-177.654,0.00019078,2]
[348128228,1736345354262,-192.24772116,0.00019078,2]
[348128229,1736345354284,-3235.36825772,0.00019078,2]
[348128285,1736345432263,-1300.34747658,0.00018887,2]
[348128287,1736345432274,-191.58178668,0.00019078,2]
[348128289,1736345432284,-300.0,0.00019176,2]
[348128291,1736345432294,-378.91203245,0.00019177,2]
[348128293,1736345432305,-500.0,0.00019177,2]
[348128295,1736345432315,-500.0,0.00019177,2]
[348128297,1736345432326,-500.0,0.00019177,2]
[348128299,1736345432336,-506.53122099,0.00019177,2]
[348128301,1736345432346,-500.0,0.00019177,2]
[348128304,1736345432356,-500.0,0.00019177,2]
[348128307,1736345432366,-371.1558623,0.00019177,2]
[348128309,1736345432375,-500.0,0.00019177,2]
[348128312,1736345432386,-500.0,0.00019177,2]
[348128315,1736345432395,-500.0,0.00019177,2]
[348128318,1736345432404,-500.0,0.00019177,2]
[348128320,1736345432414,-500.0,0.00019177,2]
[348128322,1736345432424,-550.0,0.00019177,2]
[348128324,1736345432434,-500.0,0.00019177,2]
[348128326,1736345432444,-500.0,0.00019177,2]
[348128328,1736345432454,-192.871621,0.00019177,2]
[348128334,1736345432505,-307.128379,0.00019177,2]
[348128336,1736345432518,-500.0,0.00019177,2]
[348128338,1736345432529,-500.0,0.00019177,2]
[348128340,1736345432538,-44.64034864,0.00019177,2]
[348128758,1736345438155,-153.53543763,0.00019177,2]
[348128776,1736345440247,-301.82421373,0.00019177,2]
[348128777,1736345440257,-500.0,0.00019177,2]
[348128778,1736345440266,-500.0,0.00019177,2]
[348128779,1736345440276,-500.0,0.00019177,2]
[348128780,1736345440285,-500.0,0.00019177,2]
[348128781,1736345440294,-500.0,0.00019177,2]
[348128782,1736345440304,-24716.86342517,0.00019178,5]
[348128783,1736345440315,-18426.25426458,0.00019178,5]
[348128784,1736345440325,-500.0,0.00019178,2]
[348128785,1736345440335,-500.0,0.00019178,2]
[348128786,1736345440345,-500.0,0.00019178,2]
[348128787,1736345440356,-500.0,0.00019178,2]
[348128788,1736345440367,-500.0,0.00019178,2]
[348128789,1736345440377,-500.0,0.00019178,2]
[348128790,1736345440387,-500.0,0.00019178,2]
[348128791,1736345440397,-500.0,0.00019178,2]
[348128792,1736345440407,-500.0,0.00019178,2]
[348128793,1736345440416,-500.0,0.00019178,2]
[348128794,1736345440425,-500.0,0.00019178,2]
[348128795,1736345440435,-366.96252863,0.00019178,2]
[348128796,1736345440446,-500.0,0.00019178,2]
[348128797,1736345440456,-500.0,0.00019178,2]
[348128798,1736345440465,-500.0,0.00019178,2]
[348128799,1736345440475,-500.0,0.00019178,2]
[348128800,1736345440484,-500.0,0.00019178,2]
[348128801,1736345440495,-500.0,0.00019178,2]
[348128802,1736345440505,-500.0,0.00019178,2]
[348128803,1736345440519,-500.0,0.00019178,2]
[348128804,1736345440529,-500.0,0.00019178,2]
[348128805,1736345440538,-500.0,0.00019178,2]
[348128806,1736345440549,-500.0,0.00019178,2]
[348128807,1736345440560,-500.0,0.00019178,2]
[348128808,1736345440571,-500.0,0.00019178,2]
[348128809,1736345440582,-163.8590509,0.00019178,2]
[348128810,1736345440593,-500.0,0.00019178,2]
[348128811,1736345440602,-500.3645888,0.00019178,2]
[348128812,1736345440718,-504.74626192,0.00019178,2]
[348128813,1736345440729,-500.0,0.00019178,2]
[348128814,1736345440739,-500.0,0.00019178,2]
[348128815,1736345440748,-500.0,0.00019178,2]
[348128816,1736345440757,-500.0,0.00019178,2]
[348128817,1736345440765,-500.0,0.00019178,2]
[348128818,1736345440775,-500.0,0.00019178,2]
[348128819,1736345440784,-500.0,0.00019178,2]
[348128820,1736345440793,-500.0,0.00019178,2]
[348128821,1736345440802,-500.0,0.00019178,2]
[348128822,1736345440811,-500.0,0.00019178,2]
[348128823,1736345440824,-500.0,0.00019178,2]
[348128824,1736345440833,-500.0,0.00019178,2]
[348128825,1736345440844,-500.0,0.00019178,2]
[348128826,1736345440854,-500.0,0.00019178,2]
[348128827,1736345440863,-500.0,0.00019178,2]
[348128828,1736345440873,-500.0,0.00019178,2]
[348128829,1736345440883,-500.0,0.00019178,2]
[348128830,1736345440894,-500.0,0.00019178,2]
[348128831,1736345440903,-500.0,0.00019178,2]
[348128832,1736345440913,-500.0,0.00019178,2]
[348128833,1736345440922,-5640.17,0.00019178,2]
[348128834,1736345440932,-500.0,0.00019178,2]
[348128835,1736345440941,-500.0,0.00019178,2]
[348128836,1736345440951,-500.0,0.00019178,2]
[348128837,1736345440960,-500.0,0.00019178,2]
[348128838,1736345440969,-501.48796694,0.00019178,2]
[348128839,1736345440979,-1231.7,0.00019178,2]
[348128840,1736345440990,-501.14572242,0.00019178,2]
[348128841,1736345441000,-500.0,0.00019178,2]
[348128842,1736345441010,-500.0,0.00019178,2]
[348128843,1736345441020,-500.0,0.00019178,2]
[348128844,1736345441030,-500.0,0.00019178,2]
[348128845,1736345441042,-500.0,0.00019178,2]
[348128846,1736345441052,-502.31658729,0.00019178,2]
[348128847,1736345441062,-500.0,0.00019178,2]
[348128848,1736345441072,-500.0,0.00019178,2]
[348128849,1736345441081,-500.0,0.00019178,2]
[348128850,1736345441091,-501.44848589,0.00019178,2]
[348128851,1736345441100,-500.0,0.00019178,2]
[348128852,1736345441110,-500.0,0.00019178,2]
[348128853,1736345441120,-502.14441847,0.00019178,2]
[348128854,1736345441130,-637.86661731,0.00019178,2]
[348128855,1736345441139,-500.0,0.00019178,2]
[348128856,1736345441149,-1447.38,0.00019178,2]
[348128857,1736345441159,-500.0,0.00019178,2]
[348128858,1736345441169,-501.32989299,0.00019178,2]
[348128859,1736345441179,-139.25962816,0.00019178,2]
[348128860,1736345441193,-360.74037184,0.00019178,2]
[348128861,1736345441202,-500.0,0.00019178,2]
[348128862,1736345441212,-500.93156182,0.00019178,2]
[348128863,1736345441222,-500.0,0.00019178,2]
[348128864,1736345441231,-3095.34641679,0.00019178,2]
[348128924,1736345443181,-44.7542307,0.00019178,2]
[348128926,1736345443193,-1171.94,0.00019178,2]
[348129196,1736345446002,-328.92010955,0.00019078,2]
[348129197,1736345446012,-43.29508168,0.00019178,2]
[348129199,1736345446104,-16264.69427083,0.00019178,2]
[348129200,1736345446114,-501.94703875,0.00019178,2]
[348129201,1736345446124,-500.0,0.00019178,2]
[348129202,1736345446133,-501.50121661,0.00019178,2]
[348129203,1736345446143,-501.59149564,0.00019178,2]
[348129204,1736345446152,-337.91208325,0.00019178,2]
[348129205,1736345446162,-348.81793107,0.00019178,2]
[348129206,1736345446171,-500.0,0.00019178,2]
[348129207,1736345446181,-500.0,0.00019178,2]
[348129208,1736345446190,-500.0,0.00019178,2]
[348129209,1736345446199,-696.97,0.00019178,2]
[348129210,1736345446209,-500.0,0.00019178,2]
[348129211,1736345446218,-936.8,0.00019178,2]
[348129213,1736345446228,-500.0,0.00019178,2]
[348129215,1736345446237,-500.0,0.00019178,2]
[348129216,1736345446248,-500.0,0.00019178,2]
[348129217,1736345446257,-901.43,0.00019178,2]
[348129218,1736345446266,-500.0,0.00019178,2]
[348129219,1736345446276,-740.25,0.00019178,2]
[348129220,1736345446286,-2623.33,0.00019178,2]
[348129221,1736345446295,-4825.66,0.00019178,2]
[348129222,1736345446304,-500.0,0.00019178,2]
[348129223,1736345446314,-500.0,0.00019178,2]
[348129224,1736345446323,-500.0,0.00019178,2]
[348129225,1736345446332,-879.35,0.00019178,2]
[348129226,1736345446342,-500.0,0.00019178,2]
[348129227,1736345446351,-500.0,0.00019178,2]
[348129228,1736345446360,-500.0,0.00019178,2]
[348129229,1736345446370,-500.0,0.00019178,2]
[348129230,1736345446379,-554.11,0.00019178,2]
[348129231,1736345446389,-500.0,0.00019178,2]
[348129232,1736345446399,-656.42,0.00019178,2]
[348129233,1736345446408,-508.33083847,0.00019178,5]
[348129234,1736345446417,-500.0,0.00019178,2]
[348129235,1736345446427,-500.0,0.00019178,2]
[348129236,1736345446438,-500.0,0.00019178,2]
[348129237,1736345446448,-500.0,0.00019178,2]
[348129238,1736345446458,-500.0,0.00019178,2]
[348129239,1736345446468,-1519.28,0.00019178,2]
[348129240,1736345446477,-500.0,0.00019178,2]
[348129242,1736345446487,-500.0,0.00019178,2]
[348129244,1736345446498,-240.65789789,0.00019178,2]
[348129246,1736345446507,-2980.72,0.00019178,2]
[348129247,1736345446517,-504.77458857,0.00019178,2]
[348129248,1736345446529,-1607.31,0.00019178,2]
[348129250,1736345446538,-262.4534589,0.00019178,2]
[348129251,1736345446547,-500.0,0.00019178,2]
[348129253,1736345446556,-500.0,0.00019178,2]
[348129255,1736345446566,-862.09,0.00019178,2]
[348129257,1736345446575,-500.0,0.00019178,2]
[348129258,1736345446585,-500.0,0.00019178,2]
[348129259,1736345446595,-1000.0,0.00019178,7]
[348129260,1736345446606,-500.0,0.00019178,2]
[348129261,1736345446616,-773.33,0.00019178,2]
[348129262,1736345446625,-500.0,0.00019178,2]
[348129263,1736345446635,-500.0,0.00019178,2]
[348129265,1736345446645,-668.11,0.00019178,2]
[348129267,1736345446654,-500.0,0.00019178,2]
[348129269,1736345446664,-500.0,0.00019178,2]
[348129270,1736345446673,-500.0,0.00019178,2]